[Event "*** Titled Tuesday Blitz"]
[Site "Chess.com"]
[Date "2020.10.20"]
[Round "3"]
[White "Tenamu"]
[Black "baki83"]
[Result "0-1"]
[WhiteElo "2414"]
[BlackElo "2745"]
[TimeControl "180+1"]
[EndTime "10:25:48 PDT"]
[Termination "baki83 won by resignation"]

1. d4 {[%clk 0:02:55.2]} 1... Nf6 {[%clk 0:02:58.7]} 2. Nc3 {[%clk 0:02:55.2]}
2... d5 {[%clk 0:02:58.1]} 3. Bf4 {[%clk 0:02:54.8]} 3... a6 {[%clk 0:02:58.5]}
4. e3 {[%clk 0:02:54.5]} 4... b5 {[%clk 0:02:57.9]} 5. Nf3 {[%clk 0:02:50.8]}
5... e6 {[%clk 0:02:57.2]} 6. Ne5 {[%clk 0:02:50.9]} 6... Bb7 {[%clk 0:02:53.4]}
7. Bd3 {[%clk 0:02:50.3]} 7... c5 {[%clk 0:02:49.2]} 8. Kf1 {[%clk 0:02:45.3]}
8... Nbd7 {[%clk 0:02:40]} 9. g3 {[%clk 0:02:44.7]} 9... Qb6 {[%clk 0:02:34.4]}
10. Be2 {[%clk 0:02:38.6]} 10... Nxe5 {[%clk 0:02:17.9]} 11. Bxe5 {[%clk
0:02:37.3]} 11... Nd7 {[%clk 0:02:17.6]} 12. Bf4 {[%clk 0:02:37]} 12... e5
{[%clk 0:02:09.7]} 13. Bg5 {[%clk 0:02:25.4]} 13... h6 {[%clk 0:02:03]} 14. dxc5
{[%clk 0:02:04.2]} 14... Qxc5 {[%clk 0:01:52.8]} 15. Bf3 {[%clk 0:01:57.6]}
15... hxg5 {[%clk 0:01:39.2]} 16. Bxd5 {[%clk 0:01:56.4]} 16... Bxd5 {[%clk
0:01:36.4]} 17. Nxd5 {[%clk 0:01:57.3]} 17... Nf6 {[%clk 0:01:31.2]} 18. Nc3
{[%clk 0:01:55.9]} 18... b4 {[%clk 0:01:28.2]} 19. Ne2 {[%clk 0:01:55]} 19...
Qc6 {[%clk 0:01:27.8]} 20. Kg1 {[%clk 0:01:53.3]} 20... Rd8 {[%clk 0:01:26.8]}
21. Qc1 {[%clk 0:01:50.6]} 21... Qf3 {[%clk 0:01:21.7]} 22. Qe1 {[%clk
0:01:46.7]} 22... Ne4 {[%clk 0:01:16]} 23. h3 {[%clk 0:01:45]} 23... Rd2 {[%clk
0:01:14.6]} 0-1

[Event "*** Titled Tuesday Blitz"]
[Site "Chess.com"]
[Date "2020.10.20"]
[Round "3"]
[White "Smile2005"]
[Black "Zhani-Z"]
[Result "0-1"]
[WhiteElo "2341"]
[BlackElo "2531"]
[TimeControl "180+1"]
[EndTime "10:26:00 PDT"]
[Termination "Zhani-Z won by resignation"]

1. Nf3 {[%clk 0:02:55.4]} 1... d5 {[%clk 0:02:58.1]} 2. g3 {[%clk 0:02:56.3]}
2... c6 {[%clk 0:02:56.7]} 3. Bg2 {[%clk 0:02:57.2]} 3... Bg4 {[%clk 0:02:57.3]}
4. O-O {[%clk 0:02:58.1]} 4... e6 {[%clk 0:02:50.9]} 5. d3 {[%clk 0:02:56]} 5...
Bd6 {[%clk 0:02:50.9]} 6. Nbd2 {[%clk 0:02:51.3]} 6... Ne7 {[%clk 0:02:49.8]} 7.
e4 {[%clk 0:02:51.2]} 7... O-O {[%clk 0:02:49.3]} 8. Re1 {[%clk 0:02:50.9]} 8...
Nd7 {[%clk 0:02:43.8]} 9. h3 {[%clk 0:02:49.3]} 9... Bh5 {[%clk 0:02:42.5]} 10.
g4 {[%clk 0:02:49.3]} 10... Bg6 {[%clk 0:02:42.2]} 11. e5 {[%clk 0:02:48.5]}
11... Bc7 {[%clk 0:02:41.7]} 12. Nf1 {[%clk 0:02:48.8]} 12... c5 {[%clk
0:02:37.6]} 13. Bf4 {[%clk 0:02:48.6]} 13... Nc6 {[%clk 0:02:37.4]} 14. h4
{[%clk 0:02:44.9]} 14... f5 {[%clk 0:01:54]} 15. g5 {[%clk 0:02:26.8]} 15... Bh5
{[%clk 0:01:53]} 16. Ng3 {[%clk 0:01:51.6]} 16... Bxf3 {[%clk 0:01:52]} 17. Qxf3
{[%clk 0:01:51.7]} 17... Bxe5 {[%clk 0:01:41.8]} 18. Bxe5 {[%clk 0:01:42.9]}
18... Ndxe5 {[%clk 0:01:41.4]} 19. Qf4 {[%clk 0:01:42.8]} 19... Ng6 {[%clk
0:01:35.1]} 20. Qa4 {[%clk 0:01:40.1]} 20... f4 {[%clk 0:01:27.6]} 21. Nh5
{[%clk 0:01:32]} 21... Nxh4 {[%clk 0:01:26.6]} 22. Nxf4 {[%clk 0:01:31.8]} 22...
Qxg5 {[%clk 0:01:24.9]} 0-1

[Event "*** Titled Tuesday Blitz"]
[Site "Chess.com"]
[Date "2020.10.20"]
[Round "3"]
[White "elcandado"]
[Black "Flopezin"]
[Result "1-0"]
[WhiteElo "2572"]
[BlackElo "2361"]
[TimeControl "180+1"]
[EndTime "10:26:15 PDT"]
[Termination "elcandado won by resignation"]

1. d4 {[%clk 0:03:00.9]} 1... Nf6 {[%clk 0:02:59.7]} 2. Bf4 {[%clk 0:03:00.6]}
2... e6 {[%clk 0:02:59.2]} 3. e3 {[%clk 0:03:00.3]} 3... c5 {[%clk 0:02:59.5]}
4. c3 {[%clk 0:03:00]} 4... b6 {[%clk 0:02:58.6]} 5. Nf3 {[%clk 0:02:58.5]} 5...
Bb7 {[%clk 0:02:58]} 6. Nbd2 {[%clk 0:02:59]} 6... Be7 {[%clk 0:02:57.1]} 7. h3
{[%clk 0:02:58.3]} 7... O-O {[%clk 0:02:56.3]} 8. Bd3 {[%clk 0:02:58.5]} 8...
cxd4 {[%clk 0:02:56.3]} 9. cxd4 {[%clk 0:02:58]} 9... d5 {[%clk 0:02:54.5]} 10.
O-O {[%clk 0:02:55.8]} 10... Nc6 {[%clk 0:02:53.8]} 11. a3 {[%clk 0:02:53.1]}
11... Rc8 {[%clk 0:02:47.7]} 12. b4 {[%clk 0:02:46.9]} 12... Bd6 {[%clk
0:02:45.5]} 13. Bxd6 {[%clk 0:02:39.2]} 13... Qxd6 {[%clk 0:02:44.9]} 14. Qb1
{[%clk 0:02:39.6]} 14... h6 {[%clk 0:02:44]} 15. Rc1 {[%clk 0:02:38.8]} 15...
Nd7 {[%clk 0:02:23.2]} 16. Qb2 {[%clk 0:02:36.6]} 16... Ne7 {[%clk 0:02:22.4]}
17. Ne5 {[%clk 0:02:29.6]} 17... Nxe5 {[%clk 0:01:59.7]} 18. dxe5 {[%clk
0:02:30.5]} 18... Qd7 {[%clk 0:01:59.3]} 19. Nf3 {[%clk 0:02:25.8]} 19... Rxc1+
{[%clk 0:01:55.3]} 20. Rxc1 {[%clk 0:02:24.8]} 20... Rc8 {[%clk 0:01:56.2]} 21.
Nd4 {[%clk 0:02:24.5]} 21... Rxc1+ {[%clk 0:01:45.8]} 22. Qxc1 {[%clk
0:02:25.4]} 22... Qc8 {[%clk 0:01:46.2]} 23. Qxc8+ {[%clk 0:02:21]} 23... Nxc8
{[%clk 0:01:47.1]} 24. f4 {[%clk 0:02:20.4]} 24... Kf8 {[%clk 0:01:43.8]} 25. g4
{[%clk 0:02:19.7]} 25... Ke8 {[%clk 0:01:43.2]} 26. h4 {[%clk 0:02:20]} 26...
Kd7 {[%clk 0:01:43.2]} 27. h5 {[%clk 0:02:20.3]} 27... Ne7 {[%clk 0:01:40.2]}
28. Kf2 {[%clk 0:02:16.2]} 28... a6 {[%clk 0:01:26.2]} 29. Kg3 {[%clk
0:02:12.8]} 29... Nc6 {[%clk 0:01:26.3]} 30. Nxc6 {[%clk 0:02:11.1]} 30... Kxc6
{[%clk 0:01:25.8]} 31. f5 {[%clk 0:02:11]} 31... Kd7 {[%clk 0:01:20.4]} 32. f6
{[%clk 0:02:06.8]} 32... g5 {[%clk 0:00:56.2]} 33. hxg6 {[%clk 0:02:04.3]} 33...
fxg6 {[%clk 0:00:57.1]} 34. Bxg6 {[%clk 0:02:03.5]} 34... a5 {[%clk 0:00:54.7]}
35. Kh4 {[%clk 0:02:02.4]} 1-0

[Event "*** Titled Tuesday Blitz"]
[Site "Chess.com"]
[Date "2020.10.20"]
[Round "3"]
[White "AustrianFalcon"]
[Black "cukin84"]
[Result "1-0"]
[WhiteElo "2447"]
[BlackElo "2047"]
[TimeControl "180+1"]
[EndTime "10:26:27 PDT"]
[Termination "AustrianFalcon won by resignation"]

1. e4 {[%clk 0:03:00.9]} 1... c6 {[%clk 0:02:59.7]} 2. d4 {[%clk 0:02:58.7]}
2... d5 {[%clk 0:02:59.8]} 3. e5 {[%clk 0:02:59.2]} 3... c5 {[%clk 0:02:59.6]}
4. Nf3 {[%clk 0:02:58.5]} 4... Nc6 {[%clk 0:02:58.7]} 5. dxc5 {[%clk 0:02:53.1]}
5... Bg4 {[%clk 0:02:58.4]} 6. c3 {[%clk 0:02:52]} 6... e6 {[%clk 0:02:58.1]} 7.
Be3 {[%clk 0:02:49.8]} 7... Bxf3 {[%clk 0:02:55.5]} 8. Qxf3 {[%clk 0:02:48.9]}
8... Nxe5 {[%clk 0:02:55.2]} 9. Bb5+ {[%clk 0:02:48.5]} 9... Nc6 {[%clk
0:02:51.1]} 10. O-O {[%clk 0:02:44.7]} 10... Nf6 {[%clk 0:02:50.3]} 11. c4
{[%clk 0:02:40.8]} 11... Be7 {[%clk 0:02:48.5]} 12. cxd5 {[%clk 0:02:34.4]}
12... Qxd5 {[%clk 0:02:47.1]} 13. Qe2 {[%clk 0:02:23.3]} 13... O-O {[%clk
0:02:45.5]} 14. Nc3 {[%clk 0:02:20.8]} 14... Qd7 {[%clk 0:02:42.5]} 15. Rad1
{[%clk 0:02:18.3]} 15... Qc7 {[%clk 0:02:42.1]} 16. a3 {[%clk 0:02:09.7]} 16...
Rad8 {[%clk 0:02:40.8]} 17. b4 {[%clk 0:02:05.7]} 17... a6 {[%clk 0:02:40.2]}
18. Bd3 {[%clk 0:02:04.8]} 18... Ne5 {[%clk 0:02:36.6]} 19. Bf4 {[%clk
0:01:57.6]} 19... Nfd7 {[%clk 0:02:36]} 20. Bc2 {[%clk 0:01:52]} 20... Bf6
{[%clk 0:02:29.7]} 21. Ne4 {[%clk 0:01:50.5]} 21... Kh8 {[%clk 0:02:11.2]} 22.
Nxf6 {[%clk 0:01:47.9]} 22... gxf6 {[%clk 0:02:10.8]} 23. Bxh7 {[%clk
0:01:21.3]} 23... Kxh7 {[%clk 0:02:09.5]} 24. Qh5+ {[%clk 0:01:20.8]} 24... Kg7
{[%clk 0:02:07.7]} 25. Qh6+ {[%clk 0:01:15.8]} 25... Kg8 {[%clk 0:02:07.4]} 26.
Rd3 {[%clk 0:01:15.9]} 26... Ng4 {[%clk 0:01:53.4]} 27. Rg3 {[%clk 0:01:05.1]}
27... f5 {[%clk 0:01:39]} 28. Bxc7 {[%clk 0:01:00.3]} 1-0

[Event "*** Titled Tuesday Blitz"]
[Site "Chess.com"]
[Date "2020.10.20"]
[Round "3"]
[White "Colombiano07"]
[Black "erlesfar"]
[Result "0-1"]
[WhiteElo "2221"]
[BlackElo "2499"]
[TimeControl "180+1"]
[EndTime "10:26:33 PDT"]
[Termination "erlesfar won by resignation"]

1. c4 {[%clk 0:03:00.9]} 1... g6 {[%clk 0:02:57.9]} 2. g3 {[%clk 0:03:00.7]}
2... Bg7 {[%clk 0:02:57.2]} 3. Bg2 {[%clk 0:03:01.6]} 3... e6 {[%clk 0:02:56.4]}
4. e4 {[%clk 0:03:01.7]} 4... Ne7 {[%clk 0:02:55.2]} 5. Nc3 {[%clk 0:03:02.2]}
5... O-O {[%clk 0:02:49.6]} 6. Nge2 {[%clk 0:03:02.7]} 6... Nbc6 {[%clk
0:02:45.6]} 7. O-O {[%clk 0:03:02.9]} 7... d5 {[%clk 0:02:39]} 8. exd5 {[%clk
0:03:01.2]} 8... exd5 {[%clk 0:02:38.4]} 9. Nxd5 {[%clk 0:03:01]} 9... Nxd5
{[%clk 0:02:34.7]} 10. cxd5 {[%clk 0:02:59.9]} 10... Nb4 {[%clk 0:02:28.3]} 11.
Nc3 {[%clk 0:03:00.4]} 11... Bf5 {[%clk 0:02:25]} 12. a3 {[%clk 0:02:05.6]}
12... Nc2 {[%clk 0:02:19.2]} 13. Ra2 {[%clk 0:02:05.7]} 13... Nd4 {[%clk
0:02:18.2]} 14. d3 {[%clk 0:02:03.4]} 14... Qd7 {[%clk 0:02:12.1]} 15. Be3
{[%clk 0:02:02.4]} 15... Bg4 {[%clk 0:02:09.5]} 16. f3 {[%clk 0:02:01.4]} 16...
Bh3 {[%clk 0:02:06.9]} 17. b4 {[%clk 0:01:59.9]} 17... Rae8 {[%clk 0:02:04.4]}
18. Ne4 {[%clk 0:01:50.6]} 18... Bxg2 {[%clk 0:02:02.1]} 19. Kxg2 {[%clk
0:01:44.7]} 19... f5 {[%clk 0:02:01.9]} 20. Nc5 {[%clk 0:01:37.7]} 20... Qxd5
{[%clk 0:02:00.8]} 21. Bxd4 {[%clk 0:01:15.6]} 21... Qxa2+ {[%clk 0:01:51.5]}
22. Rf2 {[%clk 0:01:12.4]} 22... Qd5 {[%clk 0:01:50.9]} 23. Bxg7 {[%clk
0:01:10.3]} 23... Kxg7 {[%clk 0:01:47.1]} 24. Na4 {[%clk 0:01:03.4]} 24... b6
{[%clk 0:01:32.2]} 25. d4 {[%clk 0:00:57.3]} 25... Re3 {[%clk 0:01:29.4]} 26.
Qd2 {[%clk 0:00:56.2]} 26... Rfe8 {[%clk 0:01:27.6]} 27. Nc3 {[%clk 0:00:55.6]}
27... Qc4 {[%clk 0:01:26]} 0-1

[Event "*** Titled Tuesday Blitz"]
[Site "Chess.com"]
[Date "2020.10.20"]
[Round "3"]
[White "Mr_Sinigami"]
[Black "Zemerovv"]
[Result "1-0"]
[WhiteElo "2504"]
[BlackElo "2285"]
[TimeControl "180+1"]
[EndTime "10:26:39 PDT"]
[Termination "Mr_Sinigami won by resignation"]

1. d4 {[%clk 0:03:00.9]} 1... d6 {[%clk 0:02:46.6]} 2. Nf3 {[%clk 0:03:00.9]}
2... g6 {[%clk 0:02:46.6]} 3. Bf4 {[%clk 0:02:59.4]} 3... Bg7 {[%clk 0:02:47.5]}
4. e3 {[%clk 0:02:59.4]} 4... e6 {[%clk 0:02:47.8]} 5. Be2 {[%clk 0:02:56.7]}
5... Ne7 {[%clk 0:02:47.4]} 6. O-O {[%clk 0:02:53]} 6... h6 {[%clk 0:02:47.2]}
7. h3 {[%clk 0:02:52.5]} 7... g5 {[%clk 0:02:47]} 8. Bh2 {[%clk 0:02:52]} 8...
Ng6 {[%clk 0:02:42.1]} 9. Nfd2 {[%clk 0:02:44]} 9... Nd7 {[%clk 0:02:41.2]} 10.
c4 {[%clk 0:02:43.5]} 10... b6 {[%clk 0:02:40.1]} 11. Nc3 {[%clk 0:02:42.4]}
11... Bb7 {[%clk 0:02:39.7]} 12. Bf3 {[%clk 0:02:25.3]} 12... Qc8 {[%clk
0:02:34.6]} 13. a4 {[%clk 0:02:22.7]} 13... a5 {[%clk 0:02:33.7]} 14. Nb5 {[%clk
0:02:20.7]} 14... Nh4 {[%clk 0:02:32.7]} 15. Bxd6 {[%clk 0:02:15.6]} 15... Nxf3+
{[%clk 0:02:28]} 16. Nxf3 {[%clk 0:02:14.1]} 16... Nf6 {[%clk 0:02:16.3]} 17.
Nxc7+ {[%clk 0:01:59.3]} 17... Kd7 {[%clk 0:02:14.3]} 18. Nxa8 {[%clk 0:01:59]}
18... Qxa8 {[%clk 0:02:11.3]} 19. c5 {[%clk 0:01:55.9]} 19... g4 {[%clk
0:02:09.5]} 20. Ne5+ {[%clk 0:01:12.1]} 20... Ke8 {[%clk 0:02:02.9]} 21. hxg4
{[%clk 0:01:08.8]} 21... Bxg2 {[%clk 0:02:00.3]} 22. f3 {[%clk 0:01:08.5]} 22...
Bxf1 {[%clk 0:01:57.4]} 23. Qxf1 {[%clk 0:01:09.2]} 23... bxc5 {[%clk
0:01:41.9]} 24. Qb5+ {[%clk 0:01:07.1]} 24... Kd8 {[%clk 0:01:41.7]} 25. Nxf7+
{[%clk 0:01:01.2]} 25... Kc8 {[%clk 0:01:39.4]} 26. Qxc5+ {[%clk 0:01:01.1]}
26... Kb7 {[%clk 0:01:35.1]} 27. Qb5+ {[%clk 0:01:00.7]} 1-0

[Event "*** Titled Tuesday Blitz"]
[Site "Chess.com"]
[Date "2020.10.20"]
[Round "3"]
[White "Synctel"]
[Black "ezkybel"]
[Result "0-1"]
[WhiteElo "1999"]
[BlackElo "2446"]
[TimeControl "180+1"]
[EndTime "10:26:43 PDT"]
[Termination "ezkybel won by resignation"]

1. e4 {[%clk 0:03:00.9]} 1... e6 {[%clk 0:02:53.8]} 2. d4 {[%clk 0:02:59.7]}
2... d5 {[%clk 0:02:54.1]} 3. Nd2 {[%clk 0:03:00.2]} 3... Nf6 {[%clk 0:02:54.1]}
4. e5 {[%clk 0:03:00.7]} 4... Nfd7 {[%clk 0:02:54.4]} 5. Bd3 {[%clk 0:03:01.1]}
5... c5 {[%clk 0:02:55]} 6. c3 {[%clk 0:03:00.8]} 6... Nc6 {[%clk 0:02:55.7]} 7.
Ngf3 {[%clk 0:03:01.2]} 7... cxd4 {[%clk 0:02:56.2]} 8. cxd4 {[%clk 0:03:01.2]}
8... f6 {[%clk 0:02:57.1]} 9. exf6 {[%clk 0:03:01.1]} 9... Nxf6 {[%clk
0:02:56.9]} 10. O-O {[%clk 0:03:00.7]} 10... Bd6 {[%clk 0:02:57.8]} 11. Re1
{[%clk 0:03:00.4]} 11... O-O {[%clk 0:02:57.8]} 12. Nb3 {[%clk 0:03:00.6]} 12...
a5 {[%clk 0:02:56.7]} 13. a4 {[%clk 0:02:54.6]} 13... Bd7 {[%clk 0:02:50.7]} 14.
Ne5 {[%clk 0:02:48.1]} 14... Be8 {[%clk 0:02:46.8]} 15. Bg5 {[%clk 0:02:40.6]}
15... h6 {[%clk 0:02:38.8]} 16. Bxf6 {[%clk 0:02:39.9]} 16... Qxf6 {[%clk
0:02:37.6]} 17. Qe2 {[%clk 0:02:29.3]} 17... Rc8 {[%clk 0:02:33.5]} 18. Rad1
{[%clk 0:02:26.9]} 18... Bb4 {[%clk 0:02:25.8]} 19. Rf1 {[%clk 0:02:25.3]} 19...
Nxe5 {[%clk 0:02:20.9]} 20. dxe5 {[%clk 0:02:25.2]} 20... Qg5 {[%clk 0:02:19.2]}
21. Nd4 {[%clk 0:02:06.6]} 21... Bh5 {[%clk 0:02:16.6]} 22. f3 {[%clk
0:01:51.1]} 22... Bc5 {[%clk 0:02:17.1]} 23. Bb1 {[%clk 0:01:45.4]} 23... Rf4
{[%clk 0:02:15.5]} 24. Qf2 {[%clk 0:00:49]} 24... Rcf8 {[%clk 0:02:09.2]} 25.
Kh1 {[%clk 0:00:42.7]} 25... Qxe5 {[%clk 0:02:06.3]} 26. Rfe1 {[%clk 0:00:41.4]}
26... Rxd4 {[%clk 0:01:56.2]} 27. Rxe5 {[%clk 0:00:19.8]} 27... Rxd1+ {[%clk
0:01:55.3]} 28. Qe1 {[%clk 0:00:20.5]} 28... Rxe1+ {[%clk 0:01:54.6]} 29. Rxe1
{[%clk 0:00:20.6]} 29... Bd4 {[%clk 0:01:51.4]} 0-1

[Event "*** Titled Tuesday Blitz"]
[Site "Chess.com"]
[Date "2020.10.20"]
[Round "3"]
[White "kuban1991"]
[Black "bazar-wokzal"]
[Result "1-0"]
[WhiteElo "2812"]
[BlackElo "2527"]
[TimeControl "180+1"]
[EndTime "10:26:50 PDT"]
[Termination "kuban1991 won by resignation"]

1. Nf3 {[%clk 0:02:59.2]} 1... d6 {[%clk 0:02:55.8]} 2. d4 {[%clk 0:02:59.1]}
2... f5 {[%clk 0:02:55.5]} 3. Nc3 {[%clk 0:02:59.3]} 3... Nf6 {[%clk 0:02:55.3]}
4. Bg5 {[%clk 0:02:59.8]} 4... Nbd7 {[%clk 0:02:48.3]} 5. e3 {[%clk 0:02:59]}
5... h6 {[%clk 0:02:45.9]} 6. Bxf6 {[%clk 0:02:55.8]} 6... Nxf6 {[%clk
0:02:46.2]} 7. Bd3 {[%clk 0:02:56.6]} 7... g6 {[%clk 0:02:41.1]} 8. e4 {[%clk
0:02:55.5]} 8... Bg7 {[%clk 0:02:36.8]} 9. Qe2 {[%clk 0:02:55.7]} 9... fxe4
{[%clk 0:02:30.6]} 10. Nxe4 {[%clk 0:02:53]} 10... Bf5 {[%clk 0:02:20.7]} 11.
Nxf6+ {[%clk 0:02:50.1]} 11... Bxf6 {[%clk 0:02:20.2]} 12. Bxf5 {[%clk
0:02:49.8]} 12... gxf5 {[%clk 0:02:20.2]} 13. Qb5+ {[%clk 0:02:41.6]} 13... Qd7
{[%clk 0:02:20.2]} 14. Qxb7 {[%clk 0:02:41.3]} 14... Qe6+ {[%clk 0:02:20.5]} 15.
Kd1 {[%clk 0:02:36.1]} 15... Kf7 {[%clk 0:02:06.7]} 16. Re1 {[%clk 0:02:31.9]}
16... Qc4 {[%clk 0:02:01.8]} 17. Qb3 {[%clk 0:02:32]} 17... Qxb3 {[%clk
0:01:54.8]} 18. axb3 {[%clk 0:02:32.9]} 18... Rhg8 {[%clk 0:01:50.7]} 19. g3
{[%clk 0:02:32.8]} 19... h5 {[%clk 0:01:50.6]} 20. Ra5 {[%clk 0:02:27.5]} 20...
e6 {[%clk 0:01:47]} 21. Kd2 {[%clk 0:02:25.8]} 21... h4 {[%clk 0:01:45.1]} 22.
Rea1 {[%clk 0:02:25.7]} 22... hxg3 {[%clk 0:01:43]} 23. hxg3 {[%clk 0:02:26.6]}
23... f4 {[%clk 0:01:42.9]} 24. gxf4 {[%clk 0:02:26]} 24... Rg4 {[%clk
0:01:33.2]} 25. Ke3 {[%clk 0:02:24.7]} 25... Kg6 {[%clk 0:01:15]} 26. Rxa7
{[%clk 0:02:24.4]} 26... Rxa7 {[%clk 0:01:15.4]} 27. Rxa7 {[%clk 0:02:25.1]}
27... c5 {[%clk 0:01:15.8]} 28. dxc5 {[%clk 0:02:20.8]} 28... dxc5 {[%clk
0:01:16.2]} 29. c3 {[%clk 0:02:19.9]} 29... Kf5 {[%clk 0:01:12.7]} 30. Rc7
{[%clk 0:02:18.7]} 30... Rxf4 {[%clk 0:01:12.3]} 31. Rxc5+ {[%clk 0:02:18.1]}
31... e5 {[%clk 0:01:12.8]} 32. Rc4 {[%clk 0:02:04.6]} 32... Rxc4 {[%clk
0:00:56.1]} 33. bxc4 {[%clk 0:02:05.5]} 33... e4 {[%clk 0:00:56.6]} 34. Nd2
{[%clk 0:02:04.9]} 34... Bg5+ {[%clk 0:00:55.1]} 35. Ke2 {[%clk 0:02:05.2]}
35... Be7 {[%clk 0:00:52.1]} 36. f3 {[%clk 0:02:02.5]} 36... exf3+ {[%clk
0:00:50.9]} 37. Nxf3 {[%clk 0:02:02.6]} 37... Ke4 {[%clk 0:00:49.8]} 38. Nd2+
{[%clk 0:02:02.8]} 38... Kf4 {[%clk 0:00:48.7]} 39. Kd3 {[%clk 0:02:03.7]} 39...
Ke5 {[%clk 0:00:46.8]} 40. b4 {[%clk 0:02:03.1]} 1-0

[Event "*** Titled Tuesday Blitz"]
[Site "Chess.com"]
[Date "2020.10.20"]
[Round "3"]
[White "northridgehawk"]
[Black "CarlssonLudvig"]
[Result "1-0"]
[WhiteElo "2213"]
[BlackElo "2442"]
[TimeControl "180+1"]
[EndTime "10:26:53 PDT"]
[Termination "northridgehawk won by resignation"]

1. e4 {[%clk 0:02:58.1]} 1... g6 {[%clk 0:03:00.1]} 2. d4 {[%clk 0:02:55.8]}
2... Bg7 {[%clk 0:03:00.5]} 3. Be3 {[%clk 0:02:56.4]} 3... c5 {[%clk 0:02:55.9]}
4. Ne2 {[%clk 0:02:53.1]} 4... Nf6 {[%clk 0:02:54]} 5. Nbc3 {[%clk 0:02:50.7]}
5... cxd4 {[%clk 0:02:40.6]} 6. Nxd4 {[%clk 0:02:48.3]} 6... d6 {[%clk
0:02:34.5]} 7. f3 {[%clk 0:02:41.8]} 7... Nc6 {[%clk 0:02:33.2]} 8. Qd2 {[%clk
0:02:42]} 8... O-O {[%clk 0:02:30.6]} 9. O-O-O {[%clk 0:02:42.3]} 9... Nxd4
{[%clk 0:02:28.1]} 10. Bxd4 {[%clk 0:02:41.9]} 10... Be6 {[%clk 0:02:27.9]} 11.
Kb1 {[%clk 0:02:40.2]} 11... Qc7 {[%clk 0:02:27.4]} 12. g4 {[%clk 0:02:40.4]}
12... Rfc8 {[%clk 0:02:26.7]} 13. h4 {[%clk 0:02:39.6]} 13... Qa5 {[%clk
0:02:17.8]} 14. a3 {[%clk 0:02:40]} 14... Rab8 {[%clk 0:02:13.7]} 15. h5 {[%clk
0:02:38.5]} 15... b5 {[%clk 0:02:12.6]} 16. hxg6 {[%clk 0:02:34.8]} 16... hxg6
{[%clk 0:01:48.3]} 17. g5 {[%clk 0:02:33.6]} 17... b4 {[%clk 0:01:44.4]} 18. Nd5
{[%clk 0:02:22.1]} 18... Nxd5 {[%clk 0:01:39.4]} 19. Bxg7 {[%clk 0:02:17.4]}
19... Kxg7 {[%clk 0:01:23.8]} 20. exd5 {[%clk 0:02:15.9]} 20... Bf5 {[%clk
0:01:23.3]} 21. Qd4+ {[%clk 0:02:08.7]} 21... f6 {[%clk 0:01:20.8]} 22. Bd3
{[%clk 0:02:04.9]} 22... Bxd3 {[%clk 0:01:15.8]} 23. Rxd3 {[%clk 0:02:02.7]}
23... bxa3 {[%clk 0:01:16]} 24. gxf6+ {[%clk 0:01:51.8]} 24... exf6 {[%clk
0:01:14.5]} 25. Re3 {[%clk 0:01:50.8]} 25... axb2 {[%clk 0:00:16.2]} 26. Re7+
{[%clk 0:01:46.7]} 26... Kg8 {[%clk 0:00:16.1]} 27. Rh8+ {[%clk 0:01:45]} 27...
Kxh8 {[%clk 0:00:13.2]} 28. Qxf6+ {[%clk 0:01:45.4]} 1-0

[Event "*** Titled Tuesday Blitz"]
[Site "Chess.com"]
[Date "2020.10.20"]
[Round "3"]
[White "GalperinPlaton"]
[Black "Malev212"]
[Result "1-0"]
[WhiteElo "2818"]
[BlackElo "2544"]
[TimeControl "180+1"]
[EndTime "10:26:54 PDT"]
[Termination "GalperinPlaton won on time"]

1. e4 {[%clk 0:03:00.8]} 1... d6 {[%clk 0:01:10.7]} 2. d4 {[%clk 0:02:59.9]}
2... Nf6 {[%clk 0:01:09.7]} 3. Nc3 {[%clk 0:03:00.5]} 3... g6 {[%clk 0:01:10.2]}
4. Nf3 {[%clk 0:02:55.7]} 4... Bg7 {[%clk 0:01:09.3]} 5. Be3 {[%clk 0:02:52.2]}
5... O-O {[%clk 0:01:09.6]} 6. Qd2 {[%clk 0:02:52.6]} 6... a6 {[%clk 0:01:08.6]}
7. Bd3 {[%clk 0:02:49.3]} 7... b5 {[%clk 0:01:08.2]} 8. a4 {[%clk 0:02:49.3]}
8... b4 {[%clk 0:01:06.3]} 9. Ne2 {[%clk 0:02:49.9]} 9... Bb7 {[%clk 0:01:04.8]}
10. Ng3 {[%clk 0:02:50.1]} 10... a5 {[%clk 0:01:02.4]} 11. Bh6 {[%clk
0:02:48.5]} 11... Nbd7 {[%clk 0:01:01.3]} 12. O-O {[%clk 0:02:46.7]} 12... e5
{[%clk 0:00:58.7]} 13. c3 {[%clk 0:02:46.5]} 13... Re8 {[%clk 0:00:56.8]} 14.
Rfe1 {[%clk 0:02:45.3]} 14... Bh8 {[%clk 0:00:55.3]} 15. Rad1 {[%clk 0:02:39.2]}
15... bxc3 {[%clk 0:00:56.2]} 16. bxc3 {[%clk 0:02:39.6]} 16... Qe7 {[%clk
0:00:52.3]} 17. Nf5 {[%clk 0:02:36.4]} 17... Qd8 {[%clk 0:00:51.9]} 18. Ng3
{[%clk 0:02:25.2]} 18... Ng4 {[%clk 0:00:51.3]} 19. Bg5 {[%clk 0:02:14.4]} 19...
Bf6 {[%clk 0:00:50.8]} 20. h4 {[%clk 0:02:11]} 20... Bxg5 {[%clk 0:00:47]} 21.
hxg5 {[%clk 0:02:11.9]} 21... Kg7 {[%clk 0:00:42.7]} 22. Bb5 {[%clk 0:02:10.4]}
22... c6 {[%clk 0:00:40.1]} 23. Bc4 {[%clk 0:02:07.6]} 23... Qe7 {[%clk
0:00:39.1]} 24. Nh4 {[%clk 0:02:05.9]} 24... Kh8 {[%clk 0:00:35.8]} 25. f3
{[%clk 0:02:05]} 25... d5 {[%clk 0:00:34.9]} 26. exd5 {[%clk 0:01:57.2]} 26...
cxd5 {[%clk 0:00:34.4]} 27. Bb5 {[%clk 0:01:57.5]} 1-0

[Event "*** Titled Tuesday Blitz"]
[Site "Chess.com"]
[Date "2020.10.20"]
[Round "3"]
[White "Oligan22"]
[Black "TrimitziosP7"]
[Result "0-1"]
[WhiteElo "2417"]
[BlackElo "2763"]
[TimeControl "180+1"]
[EndTime "10:26:56 PDT"]
[Termination "TrimitziosP7 won by resignation"]

1. e4 {[%clk 0:03:00.9]} 1... e5 {[%clk 0:02:57.9]} 2. Nf3 {[%clk 0:03:00.9]}
2... Nc6 {[%clk 0:02:56.3]} 3. Bb5 {[%clk 0:03:00.7]} 3... Nge7 {[%clk
0:02:55.6]} 4. O-O {[%clk 0:02:53.1]} 4... g6 {[%clk 0:02:55.2]} 5. c3 {[%clk
0:02:46.5]} 5... Bg7 {[%clk 0:02:51.6]} 6. d4 {[%clk 0:02:46.4]} 6... exd4
{[%clk 0:02:46.2]} 7. cxd4 {[%clk 0:02:47.3]} 7... d5 {[%clk 0:02:47]} 8. exd5
{[%clk 0:02:36.5]} 8... Nxd5 {[%clk 0:02:44.5]} 9. Bg5 {[%clk 0:02:23.3]} 9...
Qd6 {[%clk 0:02:40.9]} 10. Re1+ {[%clk 0:02:18.2]} 10... Be6 {[%clk 0:02:40.8]}
11. Ne5 {[%clk 0:02:13]} 11... O-O {[%clk 0:02:34.8]} 12. Nxc6 {[%clk 0:02:12]}
12... bxc6 {[%clk 0:02:34.5]} 13. Bc4 {[%clk 0:01:57]} 13... Qb4 {[%clk
0:02:25.2]} 14. b3 {[%clk 0:01:39.3]} 14... c5 {[%clk 0:02:22.4]} 15. a3 {[%clk
0:01:08]} 15... Qb7 {[%clk 0:02:19.7]} 16. Be3 {[%clk 0:00:55.9]} 16... Nxe3
{[%clk 0:02:14.9]} 17. fxe3 {[%clk 0:00:54.3]} 17... cxd4 {[%clk 0:02:12.9]} 18.
exd4 {[%clk 0:00:52.9]} 18... Bxc4 {[%clk 0:02:09.3]} 19. bxc4 {[%clk
0:00:53.2]} 19... Rad8 {[%clk 0:02:08.7]} 20. Kh1 {[%clk 0:00:15.9]} 20... Rxd4
{[%clk 0:02:03.1]} 21. Qc2 {[%clk 0:00:13.2]} 21... Rg4 {[%clk 0:01:57.9]} 22.
Ra2 {[%clk 0:00:12.1]} 22... Rd8 {[%clk 0:01:54]} 23. h3 {[%clk 0:00:12.1]}
23... Rg3 {[%clk 0:01:44]} 24. Qf2 {[%clk 0:00:10.5]} 24... Rxh3+ {[%clk
0:01:42.7]} 0-1